Cogmind - Beta 10.2 @@@ ROGUE MODE // 2021.05.25 @ 18:36:54 Player: CrossedViper Result: Destroyed by P1-3CE with P1-3CE's Gatling Flakker Performance ------------- Evolutions (1) 500 Regions Visited (5) 1000 Robots Destroyed (66) 330 Value Destroyed (1145) 1145 Prototype IDs (27) 540 Alien Tech Used (0) 0 Bonus (302) 302 TOTAL SCORE: 3817 Bonus ------- High Alert Combat Kills 2 Aligned with FarCom 300 Cogmind --------- Core Integrity 0/400 Matter 299/300 Energy 100/100 System Corruption 0% Temperature Cool (0) Movement Core (1450) Ox28 Location -8/Mines Parts ------- > --- POWER (1) -------- (None) > --- PROPULSION (2) --- (None) > --- UTILITY (4) ------ Humpback Improved Armor Integrity Analyzer > --- WEAPON (2) ------- 8R-AWN's Boregun > --- INVENTORY (24) --- Light Treads Advanced Myomer Leg Advanced Myomer Leg Large Storage Unit Humpback Advanced Terrain Scanner Improved Target Analyzer Advanced Core Analyzer Light Armor Plating Light Armor Plating Light Armor Plating Light Armor Plating Makeshift Armor Plating Assault Rifle Heavy Assault Rifle Autogun Shotgun Rocket Launcher Peak State ------------ > --- POWER ------------ Light Neutrino Core > --- PROPULSION ------- Light Treads Light Treads > --- UTILITY ---------- Experimental Heat Sink Humpback Salvage Targeting Computer > --- WEAPON ----------- Autogun 8R-AWN's Boregun > --- INVENTORY -------- Light Treads Advanced Myomer Leg Advanced Myomer Leg Large Storage Unit Humpback High-capacity Matter Pod Advanced Terrain Scanner Improved Armor Integrity Analyzer Light Armor Plating Light Armor Plating Light Armor Plating Light Armor Plating Light Armor Plating Light Armor Plating Latent Energy Streamer Assault Rifle Heavy Assault Rifle Autogun Shotgun Rocket Launcher Field Lobotomy Kit Longsword +1 [Rating: 39] Favorites ----------- Power Light Ion Engine Engine Light Ion Engine Power Core Light Neutrino Core Propulsion Light Treads Treads Light Treads Utility Light Armor Plating Device Experimental Heat Sink Storage Large Storage Unit Processor Salvage Targeting Computer Protection Light Armor Plating Weapon Assault Rifle Ballistic Gun Assault Rifle Launcher Rocket Launcher Slashing Weapon Longsword +1 Build | -11 -10 -9 -9 -9 -8 ------- Run | Scr Mat Mat Min Exi Min Slots Evolved 2 | . . 2 . . . Power . | . . . . . . Propulsion . | . . . . . . Utility 2 | . . 2 . . . Weapon . | . . . . . . Parts Attached 54 | 3 15 12 4 13 7 Power 5 | 1 1 1 1 1 . Engine 4 | 1 1 1 1 . . Core 1 | . . . . 1 . Reactor . | . . . . . . Propulsion 9 | 2 2 2 1 2 . Treads 9 | 2 2 2 1 2 . Leg . | . . . . . . Wheel . | . . . . . . Hover . | . . . . . . Flight . | . . . . . . Utility 21 | . 5 5 2 6 3 Device 2 | . 1 . . 1 . Storage 5 | . 4 . . 1 . Processor 2 | . . . . 1 1 Hackware . | . . . . . . Protection 12 | . . 5 2 3 2 Artifact . | . . . . . . Weapon 19 | . 7 4 . 4 4 Energy Gun . | . . . . . . Energy Cannon . | . . . . . . Ballistic Gun 14 | . 7 3 . 2 2 Ballistic Cannon . | . . . . . . Launcher 4 | . . 1 . 1 2 Special Weapon . | . . . . . . Impact Weapon . | . . . . . . Slashing Weapon 1 | . . . . 1 . Piercing Weapon . | . . . . . . Special Melee Weapon . | . . . . . . Unidentified Prototypes 4 | . . . 1 3 . Parts Lost 16 | . 2 1 2 4 7 Power 4 | . 1 1 . 1 1 Propulsion 4 | . . . . 2 2 Utility 6 | . . . 2 1 3 Weapon 2 | . 1 . . . 1 Highest Loss Streak 6 | . 1 1 1 3 6 Average Slot Usage (%) 93 | . 96 99 100 82 83 Engine 9 | . 13 10 11 6 . Treads 23 | . 28 22 22 22 19 Device 3 | . 7 . . 4 . Storage 17 | . 18 22 22 12 11 Processor 1 | . . . . 2 11 Protection 13 | . . 22 22 11 11 Ballistic Gun 22 | . 27 21 22 20 17 Naked Turns . | . . . . . . Heaviest Build 100 | 3 39 46 50 98 100 Greatest Support 40 | 40 40 40 40 40 40 Greatest Overweight (x) 2 | . . 1 1 2 2 Average Overweight (x) . | . . 1 1 1 2 Largest Inventory Capacity 36 | 4 16 16 16 36 24 Average Capacity 16 | 4 9 16 16 23 24 Most Carried 23 | 4 16 16 16 23 23 Average Carried 15 | 3 7 15 15 21 21 Final Capacity 24 | 4 16 16 16 24 24 Final Carried 23 | 4 16 16 16 23 19 Class Distribution -------------------- 69% | Mutant 25% | Hauler-Mutant 5% | Scavenger-Mutant Dominant Class ---------------- Mutant | -10/Materials Mutant | -9/Materials Mutant | -9/Mines Hauler-Mutant | -9/Exiles Hauler-Mutant | -8/Mines Resources | -11 -10 -9 -9 -9 -8 ----------- Run | Scr Mat Mat Min Exi Min Matter Collected 1793 | 183 403 324 274 421 188 Remotely . | . . . . . . Salvage Created 1858 | . 724 533 161 417 23 Parts 180 | . 58 46 11 57 8 Haulers Intercepted 5 | . 2 3 . . . Recyclers Shooed 4 | . 3 1 . . . Parts Field Recycled . | . . . . . . Retrieved Matter . | . . . . . . Parts Self-Destructed . | . . . . . . Prevented . | . . . . . . Kills | -11 -10 -9 -9 -9 -8 ------- Run | Scr Mat Mat Min Exi Min Combat Hostiles Destroyed 50 | . 20 15 3 7 5 Melee 1 | . . . . 1 . Guns 31 | . 20 7 3 1 . AOE 18 | . . 8 . 5 5 Classes Destroyed 12 | . 4 4 1 3 . Worker 1 | . . 1 . . . Builder 2 | . . 2 . . . Hauler 5 | . 2 3 . . . Recycler 1 | . . . 1 . . Operator 1 | . . 1 . . . Turret 1 | . . . . 1 . Watcher 1 | . 1 . . . . Swarmer 22 | . 9 8 . . 5 Grunt 19 | . 11 5 3 . . Sentry 2 | . . 2 . . . Zionite 8 | . . . . 8 . Assembled 6 | . . . . 6 . Best Kill Streak 6 | . 4 5 2 6 5 Combat Bots Only 6 | . 4 5 2 6 5 Max Kills in Single Turn 3 | . 1 3 1 2 2 Gunslinging . | . . . . . . Exploded 3 | . . 3 . 2 2 Melee 1 | . . . . 1 . Uniques/NPCs Destroyed 4 | . . . . 4 . 8R-AWN (-9/Exiles) EX-DEC (-9/Exiles) EX-BIN (-9/Exiles) EX-HEX (-9/Exiles) Combat | -11 -10 -9 -9 -9 -8 -------- Run | Scr Mat Mat Min Exi Min Damage Taken 3056 | . 667 302 308 958 821 Core 505 | . 99 34 45 226 101 Absorbed by Shields . | . . . . . . Core Remaining (%) 80 | 100 60 . . . . Volleys Fired 227 | . 67 51 16 85 8 Largest 2 | . 2 2 2 1 2 Hottest 53 | . 40 40 43 33 53 Shots Fired 357 | . 133 96 32 85 11 Gun 344 | . 133 90 32 81 8 Cannon . | . . . . . . Launcher 13 | . . 6 . 4 3 Special . | . . . . . . Kinetic 344 | . 133 90 32 81 8 Thermal . | . . . . . . Explosive 13 | . . 6 . 4 3 Electromagnetic . | . . . . . . Robot Hit Streak 17 | . 11 7 16 17 11 Robot Miss Streak 6 | . 5 6 2 2 1 Penetration Max . | . . . . . . Secondary Targets 6 | . 5 . 1 . . Max Gunslinging Chain 1 | . 1 . 1 . . Shots Hit Robots 250 | . 79 51 23 87 10 Core Hits 128 | . 43 35 11 34 5 Critical Hits 10 | . 1 1 . 6 2 Critical Kills 2 | . . . . 2 . Critical Parts Destroyed 4 | . 1 1 . . 2 Melee Attacks 28 | . . . . 28 . Impact . | . . . . . . Slashing 28 | . . . . 28 . Piercing . | . . . . . . Sneak Attacks . | . . . . . . Combat Hostiles . | . . . . . . Follow-up Attacks . | . . . . . . Damage Inflicted 5195 | . 829 1075 398 2414 479 Guns 2685 | . 826 605 398 778 78 Cannons . | . . . . . . Explosions 1198 | . . 460 . 337 401 Melee 1271 | . . . . 1271 . Ramming 41 | . 3 10 . 28 . Kinetic 2685 | . 826 605 398 778 78 Thermal . | . . . . . . Explosive 1198 | . . 460 . 337 401 Electromagnetic . | . . . . . . Impact . | . . . . . . Slashing 1271 | . . . . 1271 . Piercing . | . . . . . . Highest Corruption . | . . . . . . Average Corruption . | . . . . . . Corruption Purged . | . . . . . . Overload Shots . | . . . . . . Overflow Damage 73 | . . 3 . 15 55 Projectiles . | . . . . . . Explosions 64 | . . 3 . 6 55 Melee 9 | . . . . 9 . Knockbacks . | . . . . . . Impact . | . . . . . . Kinetic . | . . . . . . Secondary . | . . . . . . Self-Inflicted Damage 102 | . . . . 25 77 Shots 4 | . . . . 2 2 Rammed 8 | . 3 2 . 3 . Targets Rammed 8 | . 3 2 . 3 . Kicked . | . . . . . . Crushed . | . . . . . . Highest Temperature 85 | . 12 5 85 . 19 Average Temperature 26 | . 7 2 37 . 10 Received Heat Transfer 366 | . 150 42 174 . . Siege Activations . | . . . . . . Robots Corrupted . | . . . . . . Combat Hostiles . | . . . . . . Parts Fried 4 | . . . . 4 . Impact Corruptions 2 | . . . . 2 . Robots Melted . | . . . . . . Combat Hostiles . | . . . . . . Parts Melted . | . . . . . . Heat Transferred . | . . . . . . Parts Sabotaged . | . . . . . . Parts Stolen . | . . . . . . Parts Stripped . | . . . . . . Power Chain Reactions . | . . . . . . Missiles Intercepted . | . . . . . . Alert | -11 -10 -9 -9 -9 -8 ------- Run | Scr Mat Mat Min Exi Min Peak Influence 412 | . 279 412 136 . 179 Initial 126 | . . 106 126 . . Average 161 | . 172 246 71 . 130 Maximum Alert Level 2 | . 1 2 . . . Low Security (%) 64 | 100 61 31 100 . 100 Level 1 33 | . 38 62 . . . Level 2 1 | . . 6 . . . Level 3 . | . . . . . . Level 4 . | . . . . . . Level 5 . | . . . . . . High Security . | . . . . . . Max Security . | . . . . . . Squads Dispatched 8 | . 4 4 . . . Investigation 6 | . 3 3 . . . Extermination . | . . . . . . Reinforcement 2 | . 1 1 . . . Assault . | . . . . . . Garrison . | . . . . . . Intercept . | . . . . . . Construction Impeded . | . . . . . . Haulers Reinforced . | . . . . . . Stealth | -11 -10 -9 -9 -9 -8 --------- Run | Scr Mat Mat Min Exi Min Distress Signals 2 | . 2 . . . . Communications Jammed . | . . . . . . Distress Signals . | . . . . . . Times Spotted 79 | . 29 22 6 14 8 Peak Tracking Total 9 | . 4 7 3 9 5 Tactical Retreats 2 | . . . . 1 1 Traps | -11 -10 -9 -9 -9 -8 ------- Run | Scr Mat Mat Min Exi Min Traps Triggered 2 | . 2 . . . . Indirectly . | . . . . . . Trap Hack Attempts . | . . . . . . Triggered . | . . . . . . Disarmed . | . . . . . . Reprogrammed . | . . . . . . Reused . | . . . . . . Traps Extracted . | . . . . . . Installed . | . . . . . . Triggered . | . . . . . . Machines | -11 -10 -9 -9 -9 -8 ---------- Run | Scr Mat Mat Min Exi Min Machines Disabled 10 | . . 1 . 8 1 Max in Single Turn 1 | . . 1 . 1 1 Machines Sabotaged . | . . . . . . Garrisons Compromised . | . . . . . . Overloaded Fab Kills . | . . . . . . Fab Network Shutdowns . | . . . . . . Hacking | -11 -10 -9 -9 -9 -8 --------- Run | Scr Mat Mat Min Exi Min Machines Accessed 13 | . 6 5 . 2 . Terminals 7 | . 4 3 . . . Fabricators . | . . . . . . Repair Stations . | . . . . . . Recycling Units 4 | . 2 2 . . . Scanalyzers . | . . . . . . Garrison Access . | . . . . . . Total Hacks 24 | . 11 11 . 2 . Successful 13 | . 4 7 . 2 . Failed 10 | . 6 4 . . . Catastrophic 1 | . . 1 . . . Database Lockouts 1 | . 1 . . . . Manual 17 | . 9 7 . 1 . Terminals 18 | . 9 9 . . . Fabricators . | . . . . . . Repair Stations . | . . . . . . Recycling Units 4 | . 2 2 . . . Scanalyzers . | . . . . . . Garrison Access . | . . . . . . Terminal Hacks 8 | . 2 4 . 2 . Record 2 | . . 1 . 1 . Part Schematic 1 | . . 1 . . . Robot Analysis 2 | . 1 1 . . . Branch Access Points 1 | . . 1 . . . Recycling Unit Index 1 | . 1 . . . . EX-Prototype ID Bank 1 | . . . . 1 . Fabricator Hacks . | . . . . . . Repair Station Hacks . | . . . . . . Recycling Unit Hacks . | . . . . . . Scanalyzer . | . . . . . . Garrison Access Hacks . | . . . . . . Unauthorized Hacks 5 | . 2 3 . . . Terminals 1 | . . 1 . . . Assimilate 1 | . . 1 . . . Fabricators . | . . . . . . Repair Stations . | . . . . . . Recycling Units 4 | . 2 2 . . . Tunnel 4 | . 2 2 . . . Scanalyzers . | . . . . . . Garrison Access . | . . . . . . Data Cores Recovered . | . . . . . . Used . | . . . . . . Hacking Detections 6 | . 3 3 . . . Full Trace Events 1 | . . 1 . . . Feedback Events . | . . . . . . Feedback Blocked . | . . . . . . Robot Schematics Acquired . | . . . . . . Robots Built . | . . . . . . Matter . | . . . . . . Time . | . . . . . . Total Robot Build Rating . | . . . . . . Part Schematics Acquired 1 | . . 1 . . . Parts Built . | . . . . . . Matter . | . . . . . . Time . | . . . . . . Total Part Build Rating . | . . . . . . Parts Repaired . | . . . . . . Time . | . . . . . . Parts Recycled . | . . . . . . Recycled Matter . | . . . . . . Retrieved Matter . | . . . . . . Retrieved Components . | . . . . . . Parts Scanalyzed . | . . . . . . Part Schematics Acquired . | . . . . . . Parts Damaged . | . . . . . . Bothacking | -11 -10 -9 -9 -9 -8 ------------ Run | Scr Mat Mat Min Exi Min Used RIF Installer . | . . . . . . Robots Hacked . | . . . . . . Non-combat . | . . . . . . Combat . | . . . . . . Robot Hacks Applied . | . . . . . . Relay Couplers Released . | . . . . . . Robots Rewired . | . . . . . . Allies Hacked . | . . . . . . Hacks Repelled . | . . . . . . Allies | -11 -10 -9 -9 -9 -8 -------- Run | Scr Mat Mat Min Exi Min Total Allies . | . . . . . . Largest Group . | . . . . . . Highest-Rated Group . | . . . . . . Highest-Rated Ally . | . . . . . . Total Orders . | . . . . . . Ally Attacks . | . . . . . . Total Damage . | . . . . . . Kills . | . . . . . . Allies Corrupted . | . . . . . . Allies Melted . | . . . . . . Intel | -11 -10 -9 -9 -9 -8 ------- Run | Scr Mat Mat Min Exi Min Robot Analysis Total 2 | . 1 1 . . . Derelict Logs Recovered 1 | . . . 1 . . Drone Launches . | . . . . . . Drone Recoveries . | . . . . . . Exploration | -11 -10 -9 -9 -9 -8 ------------- Run | Scr Mat Mat Min Exi Min Turns Passed 4501 | 70 1045 951 888 1498 49 Spaces Moved 2043 | 44 499 429 458 606 7 Core 8 | 8 . . . . . Treads 2035 | 36 499 429 458 606 7 Legs . | . . . . . . Wheels . | . . . . . . Hover . | . . . . . . Flight . | . . . . . . Fastest Speed 50 | 50 160 180 180 180 200 Average Speed 179 | 140 160 180 180 197 200 Slowest Speed 200 | 160 160 180 180 200 200 Overloaded Moves . | . . . . . . Propulsion Burnouts . | . . . . . . Robots Hopped . | . . . . . . Cave-ins Triggered . | . . . . . . Exploration Rate (%) 53 | 4 76 60 85 90 4 Regions Visited 5 Branch Regions 3 Pre-discovered Areas 5 | . 2 2 . 1 . Known Exits Taken 1 | . . 1 . . . Unknown Exits Taken 4 | 1 1 . 1 1 . Scrap Searched 2 | . . . 2 . . Spaces Dug 11 | . . . . 11 . Terrain Destroyed 86 | . . 28 . 22 36 Melee . | . . . . . . Projectile 3 | . . . . 3 . AOE 83 | . . 28 . 19 36 Terrain Rammed . | . . . . . . Walls Destroyed . | . . . . . . Machines Disabled . | . . . . . . Actions | -11 -10 -9 -9 -9 -8 --------- Run | Scr Mat Mat Min Exi Min Total 2529 | 53 633 510 496 805 32 Wait 70 | . 8 4 4 47 7 Move 2038 | 43 498 428 457 605 7 Hop . | . . . . . . Pick Up 60 | 7 26 6 6 15 . Fast Attach 11 | . 5 1 2 3 . Attach 20 | 3 4 2 1 6 4 Detach 1 | . . . . . 1 Swap 24 | . 6 9 2 4 3 Drop 42 | . 16 7 8 9 2 Fire 227 | . 67 51 16 85 8 Melee 28 | . . . . 28 . Ram . | . . . . . . Kick . | . . . . . . Crush 8 | . 3 2 . 3 . Escape Stasis . | . . . . . . Rewire . | . . . . . . Trap . | . . . . . . Miscellaneous . | . . . . . . Route ------- -11/Scrapyard -10/Materials (discovered 3 exits: *Mat x3) -9/Materials (discovered 3 exits: [*Mat] / *Min x2) -9/Mines (discovered 3 exits: [*Mat x2] / *Exi) -9/Exiles -8/Mines History --------- Turn | Location | Event 7 | -11/Scrapyard | Discovered new exit (range 16) 71 | -11/Scrapyard | Entered Materials 173 | -10/Materials | Central database locked down 309 | -10/Materials | Build established: Mutant 336 | -10/Materials | Discovered new exit (range 6) 476 | -10/Materials | Discovered new exit (range 12) 640 | -10/Materials | Discovered new exit (range 16) 1116 | -10/Materials | Entered another Materials area 1116 | -9/Materials | Evolved 2 slots: Utility x2 1739 | -9/Materials | Discovered new exit (range 16) 1964 | -9/Materials | Identified exit to Mines 2067 | -9/Materials | Entered Mines 2109 | -9/Mines | Found a damaged Exp. Sensor Array with a note attached 2113 | -9/Mines | Found Prototype Device 2113 | -9/Mines | Identified Exp. Sensor Array 2357 | -9/Mines | Joined a pair of Derelicts in attacking an 0b10 outpost 2455 | -9/Mines | Learned Materials emergency access door positions 2592 | -9/Mines | Discovered new exit (range 4) 2619 | -9/Mines | Discovered new exit (range 12) 2644 | -9/Mines | Received a Rocket Launcher from a helpful Derelict 2948 | -9/Mines | Deemed a non-threat by the Exiles lab entrance 2948 | -9/Mines | Discovered new exit (range 5) 2955 | -9/Mines | Entered Exiles 2999 | -9/Exiles | Met 8R-AWN 3029 | -9/Exiles | Met EX-HEX 3133 | -9/Exiles | Met EX-DEC 3171 | -9/Exiles | Learned location of Zion (-6) 3377 | -9/Exiles | Build established: Hauler-Mutant 3413 | -9/Exiles | Met EX-BIN 3441 | -9/Exiles | Aligned with FarCom system 3443 | -9/Exiles | Given EX-Vault access code 3489 | -9/Exiles | Opened EX-Vault 3501 | -9/Exiles | Found Field Lobotomy Kit 3506 | -9/Exiles | Found Longsword +1 3511 | -9/Exiles | Found Latent Energy Streamer 3554 | -9/Exiles | Warned to stay clear of 0b10 Research branches 3681 | -9/Exiles | Attacked by the Exiles 3805 | -9/Exiles | Core integrity fell below 50% 3837 | -9/Exiles | Lost 3 parts (1p1n1u) 3848 | -9/Exiles | Destroyed 8R-AWN 3868 | -9/Exiles | Found Prototype Ballistic Gun 3889 | -9/Exiles | Identified 8R-AWN's Boregun 4146 | -9/Exiles | Destroyed EX-DEC 4179 | -9/Exiles | Destroyed EX-BIN 4214 | -9/Exiles | Destroyed EX-HEX 4427 | -9/Exiles | Discovered new exit (range 15) 4453 | -9/Exiles | Entered Mines 4493 | -8/Mines | P1-3CE came to Exiles' defense 4496 | -8/Mines | Core integrity fell below 20% 4502 | -8/Mines | Destroyed by P1-3CE with P1-3CE's Gatling Flakker Last Messages --------------- 04483_ Dropped Hcp. Matter Pod. 04484_ Extracted 162 matter. 04486_ The unstable cave ceiling collapses. 04492_ HV Slug penetrates Wall. 04493_ Extracted 10 matter. 04493_ P1-3CE: "I came as fast as I could... Wait, it was you!" 04495_ HV Slug penetrates P1-3CE. 04495_ Autogun destroyed. 04496_ Extracted 5 matter. 04497_ Lgt. Armor Plating destroyed. 04498_ The unstable cave ceiling collapses. 04498_ Lgt. Treads destroyed. 04499_ Extracted 5 matter. 04500_ Extracted 6 matter. 04500_ Lgt. Treads destroyed. 04500_ Lgt. Armor Plating destroyed. 04501_ HV Slug penetrates P1-3CE. 04501_ P1-3CE suffers critical hit. 04501_ Destroyed Spk. Heavy Treads. 04502_ Lgt. Neutrino Core destroyed. Map ----- +----------------------------------------------------+ | ???????????????????????????????????? | | ???????????????????????????????????? | | ???????????????????????????????????? | | ???????????????????????????????????? | | ???????????????????????????????????? | | ???????????????????????????????????? | | ???????????????????????????????????? | | ???????????????????????????????????? | | ?????????? ?????????????????????? | | ?????????? ?????????????????????? | | ?????????? %%[ ????????????????????? | | ?????????? * ?????????????????????? | | ?????????? ?????????????????????? | | ?????????? ?????????????????????? | | ??????????# ?????????????????????? | | ??????????# M#?????????????????????? | | ??????????# #?????????????????????? | | ??????????# #?????????????????????? | | ??????????# #?????????????????????? | | ??????????# #?????????????????????? | | ??????????# #?????????????????????? | | ?????????## ###???????????????????? | | ?????????# #???????????????????? | | ?????????# ! #???????????????????? | | ?????????# "" #???????????????????? | | ?????????# @"" ###?????????????????? | | ?????????# #?????????????????? | | ?????????# [ #?????????????????? | | ?????????# =* ###?????????????????? | | ?????????# [ * #?????????????????? | | ?????????### #????????????????? | | ??????????# #????????????????? | | ???????????## # ##????????????????? | | | | | | | | | | | | | | | | | | | | | | | | | | | | | | | | | | | +----------------------------------------------------+ Best States ------------- Heat Dissipation 54 Energy Generation 19 Energy Capacity 265 Matter Stores 300 Matter Capacity 300 Sight Range 16 Terrain Scan Density 10 Armor Coverage 300 Utility Shielding 33 Evasion (%) 40 Armor Integrity Analysis 50 Recoil Reduction 2 Salvage Targeting 1 Item Schematics ----------------- Hcp. Storage Unit | -9/Materials | Hacked Robot Schematics ------------------ None Fabricated ------------ Nothing Alien Tech Used ----------------- None Achievements -------------- None Challenges ------------ None Game ------ Seed MachineDamperTendrils Manual? 0 Play Time 00:25:20 Cumulative 413.2 hours Start 2021.05.25 @ 18:11:10 End 2021.05.25 @ 18:36:54 Sessions 1 Manual Loads 0 Difficulty Rogue Special Mode None Game No. 317 Rogue 310 Adventurer 0 Explorer 7 Win Type - Total 17 Types 7/1/9/0/0/0/0/0/0 Lore% 80 Gallery% 93 Achievement% 77 Wizard Run 0 Options --------- ASCII 0 Keyboard 0 Movement Mouse Keybinds 0 Fullscreen 1 Font 18/X11Bold Map View 76x50 Tactical HUD 1 Map Filters NONE Filters NONE Steam 1 RUN: 9fc5e3f6-d733-453b-b1c9-8030bf38fffb